[Event "Early-Titled-Tuesday-Blitz-December-26-2023"]
[Site "Chess.com"]
[Date "2023.12.26"]
[Round "4"]
[White "anasta10"]
[Black "Zurability"]
[Result "1-0"]
[WhiteElo "2577"]
[BlackElo "2691"]
[TimeControl "180+1"]
[EndTime "8:38:43 PST"]
[Termination "anasta10 won on time"]

1. Nf3 {[%clk 0:03:00.9]} 1... d5 {[%clk 0:02:57.9]} 2. d4 {[%clk 0:03:01.1]}
2... Nf6 {[%clk 0:02:58.1]} 3. c4 {[%clk 0:03:01.5]} 3... e6 {[%clk 0:02:58]} 4.
Nc3 {[%clk 0:03:01.8]} 4... Bb4 {[%clk 0:02:47.1]} 5. g3 {[%clk 0:03:01.1]} 5...
O-O {[%clk 0:02:45.7]} 6. Bg2 {[%clk 0:03:01.1]} 6... dxc4 {[%clk 0:02:45.5]} 7.
O-O {[%clk 0:03:01.4]} 7... c5 {[%clk 0:02:44.9]} 8. dxc5 {[%clk 0:03:00.1]}
8... Qa5 {[%clk 0:02:34.4]} 9. Qd4 {[%clk 0:02:49.6]} 9... Nc6 {[%clk
0:02:08.6]} 10. Qxc4 {[%clk 0:02:47.4]} 10... Qxc5 {[%clk 0:02:09.2]} 11. Qxc5
{[%clk 0:02:32.1]} 11... Bxc5 {[%clk 0:02:10.1]} 12. Bf4 {[%clk 0:02:19.1]}
12... Bb4 {[%clk 0:01:24.9]} 13. Rac1 {[%clk 0:01:56.1]} 13... Bxc3 {[%clk
0:01:23.8]} 14. Rxc3 {[%clk 0:01:57]} 14... Nd5 {[%clk 0:01:24.3]} 15. Rcc1
{[%clk 0:01:56.1]} 15... Nxf4 {[%clk 0:01:23]} 16. gxf4 {[%clk 0:01:57]} 16...
Rd8 {[%clk 0:01:22.6]} 17. Rfd1 {[%clk 0:01:52]} 17... Bd7 {[%clk 0:01:21.2]}
18. Ne5 {[%clk 0:01:43.9]} 18... Nxe5 {[%clk 0:00:57.3]} 19. fxe5 {[%clk
0:01:44.8]} 19... Bb5 {[%clk 0:00:57.4]} 20. e3 {[%clk 0:01:01.9]} 20... Ba6
{[%clk 0:00:57.1]} 21. Be4 {[%clk 0:00:56.7]} 21... g6 {[%clk 0:00:25.1]} 22. a3
{[%clk 0:00:51]} 22... Kf8 {[%clk 0:00:19.8]} 23. Rxd8+ {[%clk 0:00:38.4]} 23...
Rxd8 {[%clk 0:00:20.7]} 24. Rc7 {[%clk 0:00:38.4]} 24... Rd2 {[%clk 0:00:12]}
25. b4 {[%clk 0:00:31.8]} 25... Ra2 {[%clk 0:00:08.4]} 26. Bxb7 {[%clk
0:00:18.2]} 26... Bd3 {[%clk 0:00:08.1]} 27. Rc3 {[%clk 0:00:09.1]} 27... Bb5
{[%clk 0:00:05.2]} 28. Kg2 {[%clk 0:00:08.6]} 28... g5 {[%clk 0:00:04.1]} 29.
Kg3 {[%clk 0:00:08.4]} 29... h5 {[%clk 0:00:04.5]} 30. h3 {[%clk 0:00:03.6]}
30... h4+ {[%clk 0:00:03.5]} 31. Kf3 {[%clk 0:00:03.6]} 31... Kg7 {[%clk
0:00:03.4]} 32. Bc6 {[%clk 0:00:02.4]} 32... Be2+ {[%clk 0:00:03.4]} 33. Kg2
{[%clk 0:00:02.6]} 33... Kg6 {[%clk 0:00:03.4]} 34. Be4+ {[%clk 0:00:03.1]}
34... Kg7 {[%clk 0:00:03.3]} 35. Bf3 {[%clk 0:00:04]} 35... Bb5 {[%clk
0:00:02.9]} 36. Bg4 {[%clk 0:00:04.1]} 36... Rd2 {[%clk 0:00:02]} 37. Bf3 {[%clk
0:00:04.4]} 37... Ba4 {[%clk 0:00:01.7]} 38. Rc7 {[%clk 0:00:04.4]} 38... a6
{[%clk 0:00:01.6]} 39. Bh5 {[%clk 0:00:04.6]} 1-0

[Event "Early-Titled-Tuesday-Blitz-December-26-2023"]
[Site "Chess.com"]
[Date "2023.12.26"]
[Round "4"]
[White "isaak2009"]
[Black "mbojan"]
[Result "0-1"]
[WhiteElo "2620"]
[BlackElo "2914"]
[TimeControl "180+1"]
[EndTime "8:38:44 PST"]
[Termination "mbojan won by resignation"]

1. e4 {[%clk 0:03:00.9]} 1... a6 {[%clk 0:03:00.4]} 2. d4 {[%clk 0:03:00.9]}
2... e6 {[%clk 0:03:01]} 3. Bd3 {[%clk 0:03:01.2]} 3... d5 {[%clk 0:03:01.5]} 4.
e5 {[%clk 0:03:01.3]} 4... c5 {[%clk 0:03:01.8]} 5. c3 {[%clk 0:03:02]} 5... Bd7
{[%clk 0:03:02.4]} 6. Nf3 {[%clk 0:03:02]} 6... cxd4 {[%clk 0:03:02.8]} 7. cxd4
{[%clk 0:03:02.4]} 7... Bb5 {[%clk 0:03:03.5]} 8. Nc3 {[%clk 0:02:57.8]} 8...
Bb4 {[%clk 0:03:01.5]} 9. O-O {[%clk 0:02:55.3]} 9... Bxd3 {[%clk 0:02:59.8]}
10. Qxd3 {[%clk 0:02:55.7]} 10... Bxc3 {[%clk 0:03:00.3]} 11. bxc3 {[%clk
0:02:55.3]} 11... Nc6 {[%clk 0:03:00.1]} 12. Rb1 {[%clk 0:02:49]} 12... Qc7
{[%clk 0:02:58.6]} 13. Nh4 {[%clk 0:02:43]} 13... Nge7 {[%clk 0:02:44.4]} 14. f4
{[%clk 0:02:43]} 14... g6 {[%clk 0:02:40.7]} 15. Ba3 {[%clk 0:02:38.4]} 15...
Rc8 {[%clk 0:02:40.5]} 16. Bd6 {[%clk 0:02:38.2]} 16... Qd7 {[%clk 0:02:40.7]}
17. Rb6 {[%clk 0:02:29.6]} 17... Na5 {[%clk 0:02:35.2]} 18. Rfb1 {[%clk
0:02:28.5]} 18... Rc6 {[%clk 0:02:34.6]} 19. R6b2 {[%clk 0:02:08.5]} 19... O-O
{[%clk 0:02:02.4]} 20. g4 {[%clk 0:01:54.3]} 20... Rfc8 {[%clk 0:01:55]} 21. Bc5
{[%clk 0:01:54.1]} 21... b5 {[%clk 0:01:38.2]} 22. f5 {[%clk 0:01:16.9]} 22...
exf5 {[%clk 0:01:33.7]} 23. gxf5 {[%clk 0:01:17.8]} 23... Nxf5 {[%clk
0:01:30.2]} 24. Nxf5 {[%clk 0:01:13.1]} 24... Qxf5 {[%clk 0:01:31.1]} 25. Qxf5
{[%clk 0:01:11.9]} 25... gxf5 {[%clk 0:01:32]} 26. Rf2 {[%clk 0:01:05.4]} 26...
Nb7 {[%clk 0:01:24.1]} 27. Bb4 {[%clk 0:01:05.6]} 27... a5 {[%clk 0:01:11.7]}
28. Be7 {[%clk 0:01:05.8]} 28... Rg6+ {[%clk 0:00:58.7]} 29. Kh1 {[%clk
0:01:04.8]} 29... Rxc3 {[%clk 0:00:54.1]} 30. Rxf5 {[%clk 0:00:58.5]} 30... Rc7
{[%clk 0:00:43.7]} 31. Bh4 {[%clk 0:00:34.1]} 31... b4 {[%clk 0:00:44]} 32. Bg3
{[%clk 0:00:32.7]} 32... Rd7 {[%clk 0:00:34.5]} 33. Rc1 {[%clk 0:00:30.2]} 33...
Nd8 {[%clk 0:00:35]} 34. Rc8 {[%clk 0:00:21.6]} 34... Kg7 {[%clk 0:00:35.5]} 35.
Bh4 {[%clk 0:00:19.7]} 35... Ne6 {[%clk 0:00:32.9]} 36. Bf6+ {[%clk 0:00:18.7]}
36... Kh6 {[%clk 0:00:33.5]} 37. Rf3 {[%clk 0:00:18.2]} 37... Rg4 {[%clk
0:00:33.8]} 38. Rh3+ {[%clk 0:00:15.8]} 38... Kg6 {[%clk 0:00:34.2]} 39. Rg8+
{[%clk 0:00:16]} 39... Kf5 {[%clk 0:00:34.9]} 40. Rh5+ {[%clk 0:00:09.3]} 40...
Kf4 {[%clk 0:00:34.1]} 41. Rxg4+ {[%clk 0:00:09.9]} 41... Kxg4 {[%clk 0:00:35]}
42. Rxh7 {[%clk 0:00:10.7]} 42... Rc7 {[%clk 0:00:32.5]} 43. Rh4+ {[%clk
0:00:08.5]} 43... Kf3 {[%clk 0:00:31.4]} 44. Rh3+ {[%clk 0:00:08.7]} 44... Kf2
{[%clk 0:00:32]} 45. Bh4+ {[%clk 0:00:08.3]} 45... Ke2 {[%clk 0:00:28.8]} 46.
Rg3 {[%clk 0:00:02.1]} 46... Nxd4 {[%clk 0:00:29.3]} 47. Kg2 {[%clk 0:00:02.3]}
47... Nf5 {[%clk 0:00:26.7]} 48. Rg4 {[%clk 0:00:01.7]} 48... Ne3+ {[%clk
0:00:27.2]} 49. Kh3 {[%clk 0:00:01.8]} 49... Nxg4 {[%clk 0:00:28.1]} 0-1

[Event "Early-Titled-Tuesday-Blitz-December-26-2023"]
[Site "Chess.com"]
[Date "2023.12.26"]
[Round "4"]
[White "ChessRespected"]
[Black "Virgo15"]
[Result "0-1"]
[WhiteElo "2580"]
[BlackElo "2760"]
[TimeControl "180+1"]
[EndTime "8:38:45 PST"]
[Termination "Virgo15 won on time"]

1. d4 {[%clk 0:03:00.9]} 1... Nf6 {[%clk 0:02:59.5]} 2. Nf3 {[%clk 0:03:01]}
2... g6 {[%clk 0:03:00]} 3. g3 {[%clk 0:03:01.5]} 3... Bg7 {[%clk 0:03:00.5]} 4.
Bg2 {[%clk 0:03:02.2]} 4... O-O {[%clk 0:03:01]} 5. c4 {[%clk 0:03:02.9]} 5...
d6 {[%clk 0:03:01.4]} 6. Nc3 {[%clk 0:03:03.2]} 6... Nc6 {[%clk 0:03:02]} 7. d5
{[%clk 0:03:03.8]} 7... Na5 {[%clk 0:03:01.2]} 8. b3 {[%clk 0:03:04.4]} 8... c5
{[%clk 0:03:01.3]} 9. Bb2 {[%clk 0:03:03.9]} 9... a6 {[%clk 0:03:01.8]} 10. O-O
{[%clk 0:03:02.6]} 10... Rb8 {[%clk 0:03:02.4]} 11. a4 {[%clk 0:03:01.1]} 11...
Bd7 {[%clk 0:03:01.2]} 12. Nd2 {[%clk 0:02:56.5]} 12... b5 {[%clk 0:03:01]} 13.
axb5 {[%clk 0:02:55]} 13... axb5 {[%clk 0:03:01.7]} 14. cxb5 {[%clk 0:02:52.4]}
14... Bxb5 {[%clk 0:03:02.3]} 15. Qc2 {[%clk 0:02:46.8]} 15... Qb6 {[%clk
0:02:56.1]} 16. h3 {[%clk 0:02:36.7]} 16... Bd7 {[%clk 0:02:56.1]} 17. Ra3
{[%clk 0:02:30.2]} 17... c4 {[%clk 0:02:55.6]} 18. Rfa1 {[%clk 0:02:10.9]} 18...
Nxb3 {[%clk 0:02:55.5]} 19. Nxb3 {[%clk 0:02:06.8]} 19... cxb3 {[%clk
0:02:55.6]} 20. Qd2 {[%clk 0:02:03]} 20... Qb4 {[%clk 0:02:51.2]} 21. Ra7 {[%clk
0:01:55.1]} 21... Rfc8 {[%clk 0:02:51]} 22. Qe3 {[%clk 0:01:49.8]} 22... Kf8
{[%clk 0:02:31.1]} 23. g4 {[%clk 0:01:42.1]} 23... h6 {[%clk 0:02:26.4]} 24. Bf3
{[%clk 0:01:26.9]} 24... Rb7 {[%clk 0:02:26.1]} 25. Ra8 {[%clk 0:01:20]} 25...
Rxa8 {[%clk 0:02:24.6]} 26. Rxa8+ {[%clk 0:01:20.9]} 26... Ne8 {[%clk
0:02:25.1]} 27. Kg2 {[%clk 0:01:00.6]} 27... Rc7 {[%clk 0:02:24.9]} 28. Nd1
{[%clk 0:00:58.7]} 28... h5 {[%clk 0:02:02]} 29. Bxg7+ {[%clk 0:00:56.6]} 29...
Kxg7 {[%clk 0:02:02.9]} 30. gxh5 {[%clk 0:00:56.3]} 30... Nf6 {[%clk 0:01:54.3]}
31. h6+ {[%clk 0:00:52]} 31... Kh7 {[%clk 0:01:54.5]} 32. Nb2 {[%clk 0:00:46.9]}
32... Qc3 {[%clk 0:01:50.1]} 33. Qb6 {[%clk 0:00:43.1]} 33... Kxh6 {[%clk
0:01:42.6]} 34. Rh8+ {[%clk 0:00:38.3]} 34... Kg7 {[%clk 0:01:42.5]} 35. Qb8
{[%clk 0:00:37.4]} 35... Rc8 {[%clk 0:01:42.4]} 36. Rxc8 {[%clk 0:00:36.9]}
36... Bxc8 {[%clk 0:01:43]} 37. Nd1 {[%clk 0:00:35.5]} 37... Qc2 {[%clk
0:01:23.8]} 38. Ne3 {[%clk 0:00:23.2]} 38... Qc3 {[%clk 0:01:24.1]} 39. Nd1
{[%clk 0:00:23.3]} 39... Qd4 {[%clk 0:01:15.1]} 40. Ne3 {[%clk 0:00:21.6]} 40...
b2 {[%clk 0:01:07.6]} 41. Nc2 {[%clk 0:00:19.7]} 41... Qh4 {[%clk 0:01:06]} 42.
Qxb2 {[%clk 0:00:18.2]} 42... Bxh3+ {[%clk 0:01:02.5]} 43. Kg1 {[%clk
0:00:18.3]} 43... Bg4 {[%clk 0:01:01.6]} 44. Ne3 {[%clk 0:00:17.9]} 44... Bxf3
{[%clk 0:01:00.7]} 45. exf3 {[%clk 0:00:18.2]} 45... Qg5+ {[%clk 0:01:01.3]} 46.
Kf1 {[%clk 0:00:18.3]} 46... Qf4 {[%clk 0:01:00.5]} 47. Ke2 {[%clk 0:00:18]}
47... Kh7 {[%clk 0:00:52.4]} 48. Qb3 {[%clk 0:00:18.2]} 48... Qe5 {[%clk
0:00:51.3]} 49. Qd3 {[%clk 0:00:17.9]} 49... Nh5 {[%clk 0:00:50.9]} 50. Qc4
{[%clk 0:00:17.7]} 50... Nf4+ {[%clk 0:00:51.2]} 51. Kf1 {[%clk 0:00:18]} 51...
Qa1+ {[%clk 0:00:51.1]} 0-1

[Event "Early-Titled-Tuesday-Blitz-December-26-2023"]
[Site "Chess.com"]
[Date "2023.12.26"]
[Round "4"]
[White "rezamahdavi2008"]
[Black "mightysmasher"]
[Result "1-0"]
[WhiteElo "2868"]
[BlackElo "2602"]
[TimeControl "180+1"]
[EndTime "8:38:46 PST"]
[Termination "rezamahdavi2008 won by checkmate"]

1. Nf3 {[%clk 0:03:00.9]} 1... d5 {[%clk 0:02:59.1]} 2. c4 {[%clk 0:02:54.3]}
2... e6 {[%clk 0:02:58.6]} 3. g3 {[%clk 0:02:54.3]} 3... Nf6 {[%clk 0:02:57.2]}
4. Bg2 {[%clk 0:02:54.9]} 4... Be7 {[%clk 0:02:57.6]} 5. O-O {[%clk 0:02:55.4]}
5... O-O {[%clk 0:02:58]} 6. b3 {[%clk 0:02:56.1]} 6... b6 {[%clk 0:02:57.7]} 7.
cxd5 {[%clk 0:02:51.5]} 7... exd5 {[%clk 0:02:57.3]} 8. Bb2 {[%clk 0:02:50.7]}
8... Bb7 {[%clk 0:02:57.1]} 9. e3 {[%clk 0:02:50.3]} 9... Nbd7 {[%clk
0:02:53.6]} 10. Nc3 {[%clk 0:02:50.7]} 10... c5 {[%clk 0:02:52.3]} 11. d4 {[%clk
0:02:50.8]} 11... Rc8 {[%clk 0:02:45.8]} 12. Rc1 {[%clk 0:02:49.5]} 12... Re8
{[%clk 0:02:43.3]} 13. Re1 {[%clk 0:02:49.1]} 13... Bf8 {[%clk 0:02:42]} 14. Ne2
{[%clk 0:02:48.7]} 14... Ba6 {[%clk 0:02:22]} 15. Nf4 {[%clk 0:02:48]} 15... Bb7
{[%clk 0:02:18.1]} 16. Ne5 {[%clk 0:02:45.8]} 16... Nxe5 {[%clk 0:02:14.5]} 17.
dxe5 {[%clk 0:02:46.7]} 17... Ne4 {[%clk 0:02:14.3]} 18. Bxe4 {[%clk 0:02:43]}
18... dxe4 {[%clk 0:02:13.6]} 19. Qg4 {[%clk 0:02:43.8]} 19... Qe7 {[%clk
0:02:06.7]} 20. Rcd1 {[%clk 0:02:42]} 20... Rcd8 {[%clk 0:02:04.8]} 21. Nh5
{[%clk 0:02:40.4]} 21... Kh8 {[%clk 0:01:37.9]} 22. e6 {[%clk 0:02:34.5]} 22...
f6 {[%clk 0:01:34.7]} 23. Rd7 {[%clk 0:02:25.7]} 23... Rxd7 {[%clk 0:01:33.8]}
24. exd7 {[%clk 0:02:26.6]} 24... Rd8 {[%clk 0:01:33.1]} 25. Rd1 {[%clk
0:02:22.3]} 25... Bc6 {[%clk 0:01:32.9]} 26. Qh4 {[%clk 0:01:38.3]} 26... Rxd7
{[%clk 0:01:22.4]} 27. Re1 {[%clk 0:01:37.5]} 27... Rd6 {[%clk 0:01:18.2]} 28.
Kg2 {[%clk 0:01:32.3]} 28... Be8 {[%clk 0:01:01]} 29. Nf4 {[%clk 0:01:30.6]}
29... Kg8 {[%clk 0:00:56.1]} 30. Qg4 {[%clk 0:01:31]} 30... Bd7 {[%clk
0:00:54.1]} 31. Qe2 {[%clk 0:01:29.7]} 31... Bc8 {[%clk 0:00:47.5]} 32. h4
{[%clk 0:01:25.5]} 32... Qd8 {[%clk 0:00:46.4]} 33. Bc3 {[%clk 0:01:25]} 33...
Bb7 {[%clk 0:00:44.8]} 34. h5 {[%clk 0:01:25]} 34... Qe7 {[%clk 0:00:39.5]} 35.
Qg4 {[%clk 0:01:20.9]} 35... Qd7 {[%clk 0:00:35.8]} 36. Qe2 {[%clk 0:01:19.7]}
36... b5 {[%clk 0:00:31.5]} 37. a3 {[%clk 0:01:14.7]} 37... a6 {[%clk
0:00:30.4]} 38. a4 {[%clk 0:01:14.4]} 38... bxa4 {[%clk 0:00:26.9]} 39. Qc4+
{[%clk 0:01:15]} 39... Qf7 {[%clk 0:00:24.5]} 40. Qxa4 {[%clk 0:01:15.6]} 40...
Qd7 {[%clk 0:00:23.9]} 41. Qc4+ {[%clk 0:01:15.3]} 41... Qf7 {[%clk 0:00:24]}
42. Qa4 {[%clk 0:01:13.7]} 42... Rc6 {[%clk 0:00:21.2]} 43. Rd1 {[%clk
0:01:12.3]} 43... c4 {[%clk 0:00:20.9]} 44. Rd8 {[%clk 0:01:06.5]} 44... cxb3
{[%clk 0:00:19.8]} 45. Bb4 {[%clk 0:01:04.3]} 45... Rc8 {[%clk 0:00:19.8]} 46.
Rxc8 {[%clk 0:00:59.4]} 46... Bxc8 {[%clk 0:00:19.8]} 47. Bxf8 {[%clk 0:01:00]}
47... Kxf8 {[%clk 0:00:19.7]} 48. Qb4+ {[%clk 0:00:59.5]} 48... Kg8 {[%clk
0:00:19.4]} 49. Qb8 {[%clk 0:00:58]} 49... Qe8 {[%clk 0:00:19]} 50. Qxb3+ {[%clk
0:00:57.9]} 50... Kh8 {[%clk 0:00:19.1]} 51. Qd5 {[%clk 0:00:57.1]} 51... Qd7
{[%clk 0:00:16.7]} 52. Qc5 {[%clk 0:00:56.9]} 52... Qe8 {[%clk 0:00:16.5]} 53.
Qd6 {[%clk 0:00:55.5]} 53... Qg8 {[%clk 0:00:15.3]} 54. h6 {[%clk 0:00:54.9]}
54... a5 {[%clk 0:00:14.1]} 55. hxg7+ {[%clk 0:00:54.4]} 55... Qxg7 {[%clk
0:00:13.6]} 56. Nh5 {[%clk 0:00:52.6]} 56... Qd7 {[%clk 0:00:06.1]} 57. Qf8#
{[%clk 0:00:52]} 1-0

[Event "Early-Titled-Tuesday-Blitz-December-26-2023"]
[Site "Chess.com"]
[Date "2023.12.26"]
[Round "4"]
[White "Siniauski"]
[Black "sokidze"]
[Result "0-1"]
[WhiteElo "2593"]
[BlackElo "2780"]
[TimeControl "180+1"]
[EndTime "8:38:46 PST"]
[Termination "sokidze won by resignation"]

1. e4 {[%clk 0:03:00.9]} 1... e5 {[%clk 0:03:00.1]} 2. Nf3 {[%clk 0:03:01]} 2...
Nf6 {[%clk 0:03:00.3]} 3. Nc3 {[%clk 0:03:00.1]} 3... Nc6 {[%clk 0:03:00.2]} 4.
d4 {[%clk 0:03:00.6]} 4... exd4 {[%clk 0:03:00.6]} 5. Nxd4 {[%clk 0:03:01.5]}
5... Bb4 {[%clk 0:03:00.6]} 6. Nxc6 {[%clk 0:03:01.8]} 6... bxc6 {[%clk
0:03:01.1]} 7. Bd3 {[%clk 0:03:02.3]} 7... d5 {[%clk 0:02:57.6]} 8. exd5 {[%clk
0:03:02.7]} 8... O-O {[%clk 0:02:57.5]} 9. O-O {[%clk 0:03:02.9]} 9... Bg4
{[%clk 0:02:58.1]} 10. f3 {[%clk 0:02:57.7]} 10... Bh5 {[%clk 0:02:58.5]} 11.
dxc6 {[%clk 0:02:46.2]} 11... Qd4+ {[%clk 0:02:58.4]} 12. Kh1 {[%clk 0:02:44.8]}
12... Bxc3 {[%clk 0:02:58.9]} 13. bxc3 {[%clk 0:02:44]} 13... Qxc3 {[%clk
0:02:59.5]} 14. Rb1 {[%clk 0:02:44.1]} 14... Qxc6 {[%clk 0:02:59.7]} 15. Bb2
{[%clk 0:02:26.2]} 15... Rfd8 {[%clk 0:02:24]} 16. Qe1 {[%clk 0:02:07.2]} 16...
Bg6 {[%clk 0:02:19.8]} 17. Bxg6 {[%clk 0:02:06.3]} 17... hxg6 {[%clk 0:02:19.8]}
18. Qc3 {[%clk 0:02:07]} 18... Qxc3 {[%clk 0:01:55.7]} 19. Bxc3 {[%clk
0:02:07.9]} 19... Nd5 {[%clk 0:01:55.9]} 20. Ba5 {[%clk 0:02:08]} 20... Re8
{[%clk 0:01:08.7]} 21. Kg1 {[%clk 0:00:55.8]} 21... c6 {[%clk 0:00:55.4]} 22.
Kf2 {[%clk 0:00:51.5]} 22... Ne3 {[%clk 0:00:48.8]} 23. Rfc1 {[%clk 0:00:51.1]}
23... Nc4 {[%clk 0:00:48.2]} 24. Bc3 {[%clk 0:00:50.3]} 24... Re7 {[%clk
0:00:30.3]} 25. Re1 {[%clk 0:00:39.7]} 25... Rd7 {[%clk 0:00:27.9]} 26. Rb4
{[%clk 0:00:31.2]} 26... Na3 {[%clk 0:00:24.9]} 27. Re2 {[%clk 0:00:28.2]} 27...
c5 {[%clk 0:00:15]} 28. Ra4 {[%clk 0:00:24.6]} 28... Nb5 {[%clk 0:00:15]} 29.
Bb2 {[%clk 0:00:24.6]} 29... Rc8 {[%clk 0:00:12.3]} 30. h4 {[%clk 0:00:21.2]}
30... c4 {[%clk 0:00:10.2]} 31. Ra5 {[%clk 0:00:18.5]} 31... Rb7 {[%clk
0:00:09.6]} 32. Be5 {[%clk 0:00:16.8]} 32... f6 {[%clk 0:00:08.9]} 33. Bf4
{[%clk 0:00:16.9]} 33... c3 {[%clk 0:00:05.7]} 34. g4 {[%clk 0:00:04.3]} 34...
Nd4 {[%clk 0:00:05]} 35. Re1 {[%clk 0:00:04.7]} 35... Nxc2 {[%clk 0:00:04.9]}
36. Rc1 {[%clk 0:00:05.4]} 36... Nb4 {[%clk 0:00:04.8]} 37. Ra3 {[%clk
0:00:03.7]} 37... Nd3+ {[%clk 0:00:04.9]} 0-1

[Event "Early-Titled-Tuesday-Blitz-December-26-2023"]
[Site "Chess.com"]
[Date "2023.12.26"]
[Round "4"]
[White "SirStrateg"]
[Black "Abduzhaparov"]
[Result "1-0"]
[WhiteElo "2662"]
[BlackElo "2425"]
[TimeControl "180+1"]
[EndTime "8:38:47 PST"]
[Termination "SirStrateg won on time"]

1. e3 {[%clk 0:03:00.9]} 1... d6 {[%clk 0:03:00.9]} 2. d4 {[%clk 0:03:00.5]}
2... Nf6 {[%clk 0:03:00.7]} 3. b3 {[%clk 0:03:00.3]} 3... Nbd7 {[%clk
0:03:01.6]} 4. Bb2 {[%clk 0:03:00.6]} 4... g6 {[%clk 0:03:02.5]} 5. Nf3 {[%clk
0:03:00.9]} 5... Bg7 {[%clk 0:03:03]} 6. Be2 {[%clk 0:03:01.4]} 6... O-O {[%clk
0:03:03.6]} 7. Nbd2 {[%clk 0:03:02]} 7... Re8 {[%clk 0:03:04.5]} 8. O-O {[%clk
0:03:01.6]} 8... e5 {[%clk 0:03:04.9]} 9. dxe5 {[%clk 0:03:00.6]} 9... dxe5
{[%clk 0:03:04.7]} 10. Nc4 {[%clk 0:03:00.1]} 10... e4 {[%clk 0:02:58.5]} 11.
Nfd2 {[%clk 0:02:59.9]} 11... a5 {[%clk 0:02:47.2]} 12. a4 {[%clk 0:02:59.7]}
12... Nc5 {[%clk 0:02:41.6]} 13. Qc1 {[%clk 0:02:50.7]} 13... b6 {[%clk
0:02:37.2]} 14. Rd1 {[%clk 0:02:49.1]} 14... Qe7 {[%clk 0:02:36.7]} 15. h3
{[%clk 0:02:47.1]} 15... h5 {[%clk 0:02:36.2]} 16. Bf1 {[%clk 0:02:46.7]} 16...
Bf5 {[%clk 0:02:31.1]} 17. Bc3 {[%clk 0:02:41.8]} 17... Bh6 {[%clk 0:02:21.7]}
18. Qb2 {[%clk 0:02:41.3]} 18... Nd5 {[%clk 0:02:21]} 19. Be5 {[%clk 0:02:37.2]}
19... f6 {[%clk 0:02:12.9]} 20. Bd4 {[%clk 0:02:32.9]} 20... Ne6 {[%clk
0:02:12.8]} 21. Be2 {[%clk 0:02:21.6]} 21... Nxd4 {[%clk 0:02:12.2]} 22. Qxd4
{[%clk 0:02:20.4]} 22... Rad8 {[%clk 0:02:07.9]} 23. Qb2 {[%clk 0:02:17.9]}
23... Qb4 {[%clk 0:02:00.7]} 24. Nb1 {[%clk 0:02:12.1]} 24... Qe7 {[%clk
0:01:50.8]} 25. Nc3 {[%clk 0:02:09.8]} 25... Nb4 {[%clk 0:01:47.8]} 26. Nb5
{[%clk 0:02:07.7]} 26... Kh7 {[%clk 0:01:39.3]} 27. Nd4 {[%clk 0:02:03.3]} 27...
Bd7 {[%clk 0:01:34.6]} 28. c3 {[%clk 0:01:57.4]} 28... Nd3 {[%clk 0:01:23]} 29.
Bxd3 {[%clk 0:01:57.3]} 29... exd3 {[%clk 0:01:23.9]} 30. Rxd3 {[%clk
0:01:56.6]} 30... Bg7 {[%clk 0:01:24.3]} 31. Rad1 {[%clk 0:01:55.7]} 31... f5
{[%clk 0:01:21.4]} 32. Nf3 {[%clk 0:01:54.8]} 32... Bc6 {[%clk 0:01:07.8]} 33.
Rxd8 {[%clk 0:01:51.9]} 33... Rxd8 {[%clk 0:01:08.7]} 34. Rxd8 {[%clk
0:01:51.8]} 34... Qxd8 {[%clk 0:01:09.6]} 35. Nd4 {[%clk 0:01:52]} 35... Bd5
{[%clk 0:01:06.2]} 36. Qe2 {[%clk 0:01:50.8]} 36... c5 {[%clk 0:01:00.4]} 37.
Nb5 {[%clk 0:01:47.2]} 37... Bxc4 {[%clk 0:00:51.6]} 38. Qxc4 {[%clk 0:01:46.6]}
38... Qd1+ {[%clk 0:00:48.5]} 39. Kh2 {[%clk 0:01:46.7]} 39... Qd2 {[%clk
0:00:45.9]} 40. Qf4 {[%clk 0:01:37.3]} 40... Qd5 {[%clk 0:00:39.6]} 41. c4
{[%clk 0:01:34.4]} 41... Qe6 {[%clk 0:00:34.7]} 42. Qc7 {[%clk 0:01:27.7]} 42...
Kh6 {[%clk 0:00:32]} 43. g3 {[%clk 0:01:22.9]} 43... Qe4 {[%clk 0:00:27.1]} 44.
Qf4+ {[%clk 0:01:21.8]} 44... Qxf4 {[%clk 0:00:24.2]} 45. gxf4 {[%clk
0:01:22.2]} 45... Bf8 {[%clk 0:00:20.5]} 46. Nc7 {[%clk 0:01:20.3]} 46... Be7
{[%clk 0:00:19.7]} 47. Nd5 {[%clk 0:01:20.2]} 47... Bd8 {[%clk 0:00:19.8]} 48.
Kg3 {[%clk 0:01:20.5]} 48... Kg7 {[%clk 0:00:16.4]} 49. f3 {[%clk 0:01:20.4]}
49... Kf7 {[%clk 0:00:16]} 50. e4 {[%clk 0:01:21]} 50... Ke6 {[%clk 0:00:15]}
51. Kf2 {[%clk 0:01:19.2]} 51... Bh4+ {[%clk 0:00:13.1]} 52. Ke3 {[%clk
0:01:19.3]} 52... Bd8 {[%clk 0:00:14]} 53. Kd3 {[%clk 0:01:19.3]} 53... Kd7
{[%clk 0:00:10.1]} 54. Ne3 {[%clk 0:01:16.6]} 54... Ke6 {[%clk 0:00:09.6]} 55.
Nd5 {[%clk 0:01:06]} 55... Kd7 {[%clk 0:00:09.3]} 56. Ke2 {[%clk 0:01:06.5]}
56... Ke6 {[%clk 0:00:09.2]} 57. Kf2 {[%clk 0:01:07.1]} 57... Bh4+ {[%clk
0:00:08.7]} 58. Kg2 {[%clk 0:01:07.2]} 58... Bd8 {[%clk 0:00:09.6]} 59. Kg3
{[%clk 0:01:07.4]} 59... Kd7 {[%clk 0:00:08.8]} 60. Ne3 {[%clk 0:01:05.9]} 60...
Ke6 {[%clk 0:00:08.2]} 61. Ng2 {[%clk 0:01:06.4]} 61... Bc7 {[%clk 0:00:07]} 62.
Nh4 {[%clk 0:01:04.5]} 62... Kf6 {[%clk 0:00:04.8]} 63. exf5 {[%clk 0:00:57.4]}
1-0